lending/lending_fUSD_20240112
["ID","MTS","AMOUNT","RATE_DAILY","PERIOD"]
[311414923,1705078285982,-500.0,0.00037808,4]
[311414924,1705078285991,-214.19,0.00037808,4]
[311414925,1705078286001,-394.44,0.00037808,4]
[311414926,1705078286011,-500.0,0.00037808,4]
[311414927,1705078286021,-500.0,0.00037808,4]
[311414928,1705078286031,-500.0,0.00037808,4]
[311414929,1705078286040,-500.0,0.00037808,4]
[311414930,1705078286051,-500.0,0.00037808,4]
[311414931,1705078286060,-500.0,0.00037808,4]
[311414932,1705078286074,-931.55,0.00037808,4]
[311414933,1705078286084,-500.0,0.00037808,4]
[311414934,1705078286094,-158.05,0.00037808,4]
[311414935,1705078286104,-1378.86,0.00037808,4]
[311414936,1705078286113,-704.26,0.00037808,4]
[311414937,1705078286122,-591.8,0.00037808,4]
[311414938,1705078286134,-500.0,0.00037808,4]
[311414939,1705078286148,-1855.35,0.00037808,4]
[311414940,1705078286157,-253.13039098,0.00037808,4]
[311414941,1705078286167,-633.89,0.00037808,4]
[311414942,1705078286178,-500.0,0.00037808,4]
[311414943,1705078286189,-500.0,0.00037808,4]
[311414944,1705078286200,-500.0,0.00037808,4]
[311414945,1705078286212,-500.0,0.00037808,4]
[311414946,1705078286228,-500.0,0.00037808,4]
[311414947,1705078286243,-500.0,0.00037808,4]
[311414948,1705078286253,-455.44,0.00037808,4]
[311414949,1705078286264,-500.0,0.00037808,4]
[311414950,1705078286274,-596.15,0.00037808,4]
[311414951,1705078286284,-549.38,0.00037808,4]
[311414952,1705078286294,-500.0,0.00037808,4]
[311414953,1705078286305,-500.0,0.00037808,4]
[311414954,1705078286315,-500.0,0.00037808,4]
[311414955,1705078286325,-500.0,0.00037808,4]
[311414956,1705078286335,-500.0,0.00037808,4]
[311414957,1705078286345,-361.86,0.00037808,4]
[311414958,1705078286356,-650.36,0.00037808,4]
[311414959,1705078286366,-565.49,0.00037808,4]
[311414960,1705078286376,-1004.26,0.00037808,4]
[311414961,1705078286390,-644.9,0.00037808,4]
[311414962,1705078286400,-500.0,0.00037808,4]
[311414963,1705078286410,-500.0,0.00037808,4]
[311414964,1705078286420,-500.0,0.00037808,4]
[311414965,1705078286429,-500.0,0.00037808,4]
[311414966,1705078286439,-500.0,0.00037808,4]
[311414967,1705078286448,-500.0,0.00037808,4]
[311414968,1705078286458,-500.0,0.00037808,4]
[311414969,1705078286467,-500.0,0.00037808,4]
[311414970,1705078286477,-1035.58,0.00037808,4]
[311414971,1705078286487,-500.0,0.00037808,4]
[311414972,1705078286497,-500.0,0.00037808,4]
[311414973,1705078286507,-682.31,0.00037808,4]
[311414974,1705078286516,-500.0,0.00037808,4]
[311414975,1705078286526,-655.11,0.00037808,4]
[311414976,1705078286536,-500.0,0.00037808,4]
[311414977,1705078286546,-500.0,0.00037808,4]
[311414978,1705078286557,-500.0,0.00037808,4]
[311414979,1705078286567,-500.0,0.00037808,4]
[311414980,1705078286578,-941.05,0.00037808,4]
[311414981,1705078286589,-500.0,0.00037808,4]
[311414982,1705078286599,-500.0,0.00037808,4]
[311414983,1705078286609,-569.1,0.00037808,4]
[311414984,1705078286619,-500.0,0.00037808,4]
[311414985,1705078286629,-532.17,0.00037808,4]
[311414986,1705078286642,-306.91,0.00037808,4]
[311414987,1705078286652,-1133.84,0.00037808,4]
[311414988,1705078286663,-500.0,0.00037808,4]
[311414989,1705078286673,-500.0,0.00037808,4]
[311414990,1705078286683,-500.0,0.00037808,4]
[311414991,1705078286693,-500.0,0.00037808,4]
[311414992,1705078286704,-500.0,0.00037808,4]
[311414993,1705078286713,-500.0,0.00037808,4]
[311414994,1705078286723,-500.0,0.00037808,4]
[311414995,1705078286734,-500.0,0.00037808,4]
[311414996,1705078286744,-2787.39,0.00037808,4]
[311414997,1705078286754,-665.67,0.00037808,4]
[311414998,1705078286765,-4677.32,0.00037808,4]
[311414999,1705078286775,-500.0,0.00037808,4]
[311415000,1705078286785,-500.0,0.00037808,4]
[311415001,1705078286795,-1033.68,0.00037808,4]
[311415002,1705078287356,-989.52,0.00037808,4]
[311415003,1705078287366,-554.11,0.00037808,4]
[311415004,1705078287377,-500.0,0.00037808,4]
[311415005,1705078287390,-1450.88,0.00037808,4]
[311415006,1705078287400,-500.0,0.00037808,4]
[311415007,1705078287410,-500.0,0.00037808,4]
[311415008,1705078287420,-500.0,0.00037808,4]
[311415009,1705078287430,-500.0,0.00037808,4]
[311415010,1705078287440,-986.25,0.00037808,4]
[311415011,1705078287449,-500.0,0.00037808,4]
[311415012,1705078287459,-500.0,0.00037808,4]
[311415013,1705078287469,-500.0,0.00037808,4]
[311415014,1705078287478,-5168.02,0.00037808,4]
[311415015,1705078287488,-1229.05,0.00037808,4]
[311415016,1705078287497,-500.0,0.00037808,4]
[311415017,1705078287506,-160.73,0.00037808,4]
[311415018,1705078287516,-719.31,0.00037808,4]
[311415019,1705078287525,-799.83,0.00037808,4]
[311415020,1705078287534,-691.11,0.00037808,4]
[311415021,1705078287545,-500.0,0.00037808,4]
[311415022,1705078287555,-609.83,0.00037808,4]
[311415023,1705078287565,-2978.71,0.00037808,4]
[311415024,1705078287576,-500.0,0.00037808,4]
[311415025,1705078287586,-500.0,0.00037808,4]
[311415026,1705078287596,-500.0,0.00037808,4]
[311415027,1705078287606,-646.85,0.00037808,4]
[311415028,1705078287616,-589.54,0.00037808,4]
[311415029,1705078287627,-510.43,0.00037808,4]
[311415030,1705078287638,-500.0,0.00037808,4]
[311415031,1705078287647,-1048.49,0.00037808,4]
[311415032,1705078287657,-500.0,0.00037808,4]
[311415033,1705078287666,-989.98,0.00037808,4]
[311415034,1705078287676,-515.37,0.00037808,4]
[311415035,1705078287687,-778.99,0.00037808,4]
[311415036,1705078287697,-500.0,0.00037808,4]
[311415037,1705078287707,-500.0,0.00037808,4]
[311415038,1705078287718,-500.0,0.00037808,4]
[311415039,1705078287728,-584.22,0.00037808,4]
[311415040,1705078287738,-500.0,0.00037808,4]
[311415041,1705078287749,-500.0,0.00037808,4]
[311415042,1705078287759,-199.67,0.00037808,4]
[311415043,1705078287770,-2071.89,0.00037808,4]
[311415044,1705078287780,-500.0,0.00037808,4]
[311415045,1705078287789,-500.0,0.00037808,4]
[311415046,1705078287800,-230.0,0.00037808,4]
[311415047,1705078287809,-1972.66,0.00037808,4]
[311415048,1705078287820,-1209.09,0.00037808,4]
[311415049,1705078287829,-3109.86,0.00037808,4]
[311415050,1705078287840,-500.0,0.00037808,4]
[311415051,1705078287850,-500.0,0.00037808,4]
[311415052,1705078287860,-1521.97,0.00037808,4]
[311415053,1705078287869,-693.43,0.00037808,4]
[311415054,1705078287879,-500.0,0.00037808,4]
[311415055,1705078287892,-500.0,0.00037808,4]
[311415056,1705078287902,-589.77780988,0.00037808,4]
[311415057,1705078287911,-500.0,0.00037808,4]
[311415058,1705078287921,-500.0,0.00037808,4]
[311415059,1705078287930,-500.0,0.00037808,4]
[311415060,1705078287939,-500.0,0.00037808,4]
[311415061,1705078287949,-500.0,0.00037808,4]
[311415062,1705078287958,-500.0,0.00037808,5]
[311415063,1705078287968,-500.0,0.00037808,4]
[311415064,1705078287977,-500.0,0.00037808,4]
[311415065,1705078287987,-500.0,0.00037808,4]
[311415066,1705078287996,-671.95,0.00037808,4]
[311415067,1705078288006,-6182.51,0.00037808,2]
[311415068,1705078288016,-1951.6,0.00037808,2]
[311415069,1705078288026,-163.83144806,0.00037869,7]
[311415070,1705078288036,-156.96192972,0.00037886,7]
[311415071,1705078288047,-1694.0,0.0003789,3]
[311415072,1705078288056,-200.0,0.000379,2]
[311415073,1705078288066,-2842.72092176,0.000379,4]
[311415074,1705078288076,-3413.81349475,0.000379,3]
[311415075,1705078288085,-2000.0,0.000379,2]
[311415076,1705078288094,-1973.84689895,0.000379,2]
[311415077,1705078288104,-66078.40634969,0.000379,3]
[311415078,1705078288148,-62719.51988553,0.000379,3]
[311415079,1705078288160,-19734.8409,0.000379,3]
[311415080,1705078288172,-844.855005,0.000379,3]
[311415081,1705078288183,-548.23929759,0.000379,3]
[311415082,1705078288195,-100026.51638942,0.000379,3]
[311415083,1705078288206,-543.10706771,0.000379,3]
[311415084,1705078288221,-8721.37152,0.000379,3]
[311415085,1705078288233,-263.703,0.000379,3]
[311415086,1705078288248,-1348.32280066,0.000379,3]
[311415087,1705078288259,-1737.68353684,0.000379,3]
[311415088,1705078288271,-2797.08409446,0.000379,3]
[311415089,1705078288283,-667.57792944,0.000379,3]
[311415090,1705078288296,-873.84,0.000379,3]
[311415091,1705078288307,-301.77116263,0.000379,3]
[311415092,1705078288630,-290.39991326,0.00035616,4]
[311415093,1705078288645,-209.60008674,0.00035616,4]
[311415094,1705078288657,-500.0,0.00036164,4]
[311415095,1705078288666,-172.20553326,0.00036164,4]
[311415096,1705078288678,-327.79446674,0.00036164,4]
[311415097,1705078288687,-500.0,0.00036438,4]
[311415098,1705078288696,-500.0,0.00036438,4]
[311415099,1705078288705,-500.0,0.00036712,4]
[311415100,1705078288714,-4699.36313326,0.000379,3]
[311415101,1705078288791,-270.35000003,0.00035616,4]
[311415102,1705078288803,-229.64999997,0.00035616,4]
[311415103,1705078288812,-500.0,0.0003589,4]
[311415104,1705078288821,-238.53500003,0.00036164,4]
[311415105,1705078288833,-261.46499997,0.00036164,4]
[311415106,1705078288842,-173.41500003,0.00036712,4]
[311415107,1705078288853,-326.58499997,0.00036712,4]
[311415108,1705078288863,-500.0,0.00036986,4]
[311415109,1705078288873,-246.38286925,0.00036986,4]
[311415110,1705078288885,-253.61713075,0.00036986,4]
[311415111,1705078288895,-12875.64252925,0.000379,3]
[311415112,1705078289008,-500.0,0.00035616,4]
[311415113,1705078289018,-500.0,0.00035616,4]
[311415114,1705078289028,-500.0,0.0003589,4]
[311415115,1705078289038,-245.48,0.00036164,4]
[311415116,1705078289050,-254.52,0.00036164,4]
[311415117,1705078289060,-447.22,0.00036438,4]
[311415118,1705078289070,-500.0,0.0003726,4]
[311415119,1705078289080,-26.41636633,0.0003726,4]
[311415120,1705078289092,-296.16029572,0.0003726,4]
[311415121,1705078289104,-177.42333795,0.0003726,4]
[311415122,1705078289113,-1247.8535,0.00037391,7]
[311415123,1705078289123,-500.0,0.00037534,4]
[311415124,1705078289134,-500.0,0.00037534,4]
[311415125,1705078289148,-500.0,0.00037808,4]
[311415126,1705078289158,-500.0,0.00037808,4]
[311415127,1705078289167,-354092.93490652,0.000379,3]
[311415128,1705078289177,-458.85045446,0.00037999,4]
[311415129,1705078289188,-487.18811574,0.00037999,4]
[311415130,1705078289197,-151.96265296,0.00037999,4]
[311415131,1705078289207,-420.68715472,0.00037999,4]
[311415132,1705078289217,-500.0,0.00037999,4]
[311415133,1705078289227,-376.61432556,0.00037999,4]
[311415134,1705078289237,-1941.13500546,0.00037999,7]
[311415135,1705078289247,-1941.13500546,0.00037999,7]
[311415136,1705078289257,-1941.13500546,0.00037999,7]
[311415137,1705078289266,-1941.13500546,0.00037999,7]
[311415138,1705078289276,-1941.13500546,0.00037999,7]
[311415139,1705078289285,-1941.13500546,0.00037999,7]
[311415140,1705078289295,-1941.13500546,0.00037999,7]
[311415141,1705078289305,-1941.13500546,0.00037999,7]
[311415142,1705078289315,-1941.13500546,0.00037999,7]
[311415143,1705078289325,-1941.13500546,0.00037999,7]
[311415144,1705078289335,-1941.13500546,0.00037999,7]
[311415145,1705078289345,-1941.13500546,0.00037999,7]
[311415146,1705078289355,-2159.98437334,0.00037999,7]
[311415147,1705078289365,-2159.98437334,0.00037999,7]
[311415148,1705078289375,-2159.98437334,0.00037999,7]
[311415149,1705078289387,-2159.98437334,0.00037999,7]
[311415150,1705078289396,-2159.98437334,0.00037999,7]
[311415151,1705078289409,-2159.98437334,0.00037999,7]
[311415152,1705078289418,-2159.98437334,0.00037999,7]
[311415153,1705078289427,-2159.98437334,0.00037999,7]
[311415154,1705078289439,-2159.98437334,0.00037999,7]
[311415155,1705078289449,-2159.98437334,0.00037999,7]
[311415156,1705078289459,-2159.98437334,0.00037999,7]
[311415157,1705078289468,-2159.98437334,0.00037999,7]
[311415158,1705078289478,-2159.98437334,0.00037999,7]
[311415159,1705078289488,-2159.98437334,0.00037999,7]
[311415160,1705078289497,-171.0,0.00038,27]
[311415161,1705078289507,-2175.13350478,0.00038,4]
[311415162,1705078289517,-809.77,0.00038082,4]
[311415163,1705078289527,-731.98,0.00038082,4]
[311415164,1705078289537,-500.0,0.00038082,4]
[311415165,1705078289546,-500.0,0.00038082,4]
[311415166,1705078289555,-500.0,0.00038082,4]
[311415167,1705078289566,-617.18,0.00038082,4]
[311415168,1705078289576,-500.0,0.00038082,4]
[311415169,1705078289586,-363.4,0.00038082,4]
[311415170,1705078289595,-500.0,0.00038082,4]
[311415171,1705078289606,-321.0,0.00038082,4]
[311415172,1705078289616,-500.0,0.00038082,4]
[311415173,1705078289626,-292.85,0.00038082,4]
[311415174,1705078289640,-500.0,0.00038082,4]
[311415175,1705078289649,-500.0,0.00038082,4]
[311415176,1705078289659,-931.55,0.00038082,4]
[311415177,1705078289670,-500.0,0.00038082,4]
[311415178,1705078289681,-1378.86,0.00038082,4]
[311415179,1705078289691,-704.26,0.00038082,4]
[311415180,1705078289702,-500.0,0.00038082,4]
[311415181,1705078289712,-1855.35,0.00038082,4]
[311415182,1705078289722,-633.89,0.00038082,4]
[311415183,1705078289732,-500.0,0.00038082,4]
[311415184,1705078289743,-227.68,0.00038082,4]
[311415185,1705078289754,-500.0,0.00038082,4]
[311415186,1705078289765,-500.0,0.00038082,4]
[311415187,1705078289775,-500.0,0.00038082,4]
[311415188,1705078289786,-500.0,0.00038082,4]
[311415189,1705078289797,-500.0,0.00038082,4]
[311415190,1705078289807,-549.38,0.00038082,4]
[311415191,1705078289818,-500.0,0.00038082,4]
[311415192,1705078289828,-500.0,0.00038082,4]
[311415193,1705078289839,-500.0,0.00038082,4]
[311415194,1705078289849,-239.48,0.00038082,4]
[311415195,1705078289860,-516.45,0.00038082,4]
[311415196,1705078289871,-650.36,0.00038082,4]
[311415197,1705078289881,-174.27010572,0.00038082,4]
[311415198,1705078289897,-829.98989428,0.00038082,4]
[311415199,1705078289907,-644.9,0.00038082,4]
[311415200,1705078289918,-500.0,0.00038082,4]
[311415201,1705078289928,-275.11010572,0.00038082,4]
[311415202,1705078289941,-224.88989428,0.00038082,4]
[311415203,1705078289952,-500.0,0.00038082,4]
[311415204,1705078289964,-642.68,0.00038082,4]
[311415205,1705078289976,-500.0,0.00038082,4]
[311415206,1705078289987,-500.0,0.00038082,4]
[311415207,1705078289997,-405.55,0.00038082,4]
[311415208,1705078290008,-1035.58,0.00038082,4]
[311415209,1705078290019,-500.0,0.00038082,4]
[311415210,1705078290029,-500.0,0.00038082,4]
[311415211,1705078290040,-682.31,0.00038082,4]
[311415212,1705078290051,-500.0,0.00038082,4]
[311415213,1705078290061,-655.11,0.00038082,4]
[311415214,1705078290071,-500.0,0.00038082,4]
[311415215,1705078290082,-500.0,0.00038082,4]
[311415216,1705078290092,-500.0,0.00038082,4]
[311415217,1705078290102,-500.34,0.00038082,4]
[311415218,1705078290112,-941.05,0.00038082,4]
[311415219,1705078290122,-500.0,0.00038082,4]
[311415220,1705078290132,-500.0,0.00038082,4]
[311415221,1705078290146,-326.73,0.00038082,4]
[311415222,1705078290157,-532.17,0.00038082,4]
[311415223,1705078290168,-1133.84,0.00038082,4]
[311415224,1705078290180,-500.0,0.00038082,4]
[311415225,1705078290191,-500.0,0.00038082,4]
[311415226,1705078290202,-500.0,0.00038082,4]
[311415227,1705078290212,-500.0,0.00038082,4]
[311415228,1705078290223,-500.0,0.00038082,4]
[311415229,1705078290235,-500.0,0.00038082,4]
[311415230,1705078290246,-500.0,0.00038082,4]
[311415231,1705078290257,-2787.39,0.00038082,4]
[311415232,1705078290268,-665.67,0.00038082,4]
[311415233,1705078290280,-4677.32,0.00038082,4]
[311415234,1705078290290,-500.0,0.00038082,4]
[311415235,1705078290301,-500.0,0.00038082,4]
[311415236,1705078290312,-1033.68,0.00038082,4]
[311415237,1705078290324,-989.52,0.00038082,4]
[311415238,1705078290334,-554.11,0.00038082,4]
[311415239,1705078290344,-500.0,0.00038082,4]
[311415240,1705078290355,-1450.88,0.00038082,4]
[311415241,1705078290365,-500.0,0.00038082,4]
[311415242,1705078290376,-500.0,0.00038082,4]
[311415243,1705078290387,-500.0,0.00038082,4]
[311415244,1705078290398,-500.0,0.00038082,4]
[311415245,1705078290409,-986.25,0.00038082,4]
[311415246,1705078290419,-500.0,0.00038082,4]
[311415247,1705078290430,-500.0,0.00038082,4]
[311415248,1705078290440,-322.3,0.00038082,4]
[311415249,1705078290607,-5168.02,0.00038082,4]
[311415250,1705078290618,-1229.05,0.00038082,4]
[311415251,1705078290629,-500.0,0.00038082,4]
[311415252,1705078290641,-83.62518424,0.00038082,4]
[311415253,1705078290669,-500.0,0.00035616,4]
[311415254,1705078290680,-635.68481576,0.00038082,4]
[311415255,1705078290691,-799.83,0.00038082,4]
[311415256,1705078290701,-691.11,0.00038082,4]
[311415257,1705078290712,-500.0,0.00038082,4]
[311415258,1705078290723,-609.83,0.00038082,4]
[311415259,1705078290734,-2978.71,0.00038082,4]
[311415260,1705078290745,-500.0,0.00038082,4]
[311415261,1705078290755,-500.0,0.00038082,4]
[311415262,1705078290766,-457.5,0.00038082,4]
[311415263,1705078290776,-589.54,0.00038082,4]
[311415264,1705078290786,-236.42617653,0.00038082,4]
[311415265,1705078290796,-510.43,0.00038082,4]
[311415266,1705078290807,-430.1513928,0.00038082,4]
[311415267,1705078290820,-618.3386072,0.00038082,4]
[311415268,1705078290831,-500.0,0.00038082,4]
[311415269,1705078290841,-989.98,0.00038082,4]
[311415270,1705078290853,-515.37,0.00038082,4]
[311415271,1705078290863,-778.99,0.00038082,4]
[311415272,1705078290874,-500.0,0.00038082,4]
[311415273,1705078290886,-468.5463928,0.00038082,4]
[311415274,1705078290900,-31.4536072,0.00038082,4]
[311415275,1705078290911,-500.0,0.00038082,4]
[311415276,1705078290921,-194.28843639,0.00038082,4]
[311415277,1705078290934,-389.93156361,0.00038082,4]
[311415278,1705078290945,-500.0,0.00038082,4]
[311415279,1705078290956,-500.0,0.00038082,4]
[311415280,1705078290966,-2071.89,0.00038082,4]
[311415281,1705078290977,-500.0,0.00038082,4]
[311415282,1705078290987,-500.0,0.00038082,4]
[311415283,1705078290997,-1972.66,0.00038082,4]
[311415284,1705078291007,-1209.09,0.00038082,4]
[311415285,1705078291017,-3109.86,0.00038082,4]
[311415286,1705078291029,-500.0,0.00038082,4]
[311415287,1705078291040,-1521.97,0.00038082,4]
[311415288,1705078291051,-500.0,0.00038082,4]
[311415289,1705078291062,-693.43,0.00038082,4]
[311415290,1705078291073,-385.86,0.00038082,4]
[311415291,1705078291084,-500.0,0.00038082,4]
[311415292,1705078291094,-500.0,0.00038082,4]
[311415293,1705078291104,-500.0,0.00038082,4]
[311415294,1705078291115,-500.0,0.00038082,4]
[311415295,1705078291126,-383.1,0.00038082,4]
[311415296,1705078291140,-500.0,0.00038082,5]
[311415297,1705078291151,-500.0,0.00038082,4]
[311415298,1705078291162,-500.0,0.00038082,4]
[311415299,1705078291174,-188.35,0.00038082,4]
[311415300,1705078291185,-671.95,0.00038082,4]
[311415301,1705078291196,-500.0,0.00038082,4]
[311415302,1705078291207,-500.0,0.00038082,4]
[311415303,1705078291218,-152.67626459,0.00038085,7]
[311415304,1705078291229,-162.0,0.000381,7]
[311415305,1705078291239,-572.75697994,0.00038175,10]
[311415306,1705078291251,-528.65521957,0.00038191,2]
[311415307,1705078291262,-218.9,0.000382,7]
[311415308,1705078291273,-155.91333088,0.00038276,7]
[311415309,1705078291284,-162.29136425,0.00038288,7]
[311415310,1705078291294,-151.75212932,0.0003835,2]
[311415311,1705078291305,-809.77,0.00038356,4]
[311415312,1705078291316,-731.98,0.00038356,4]
[311415313,1705078291326,-373.32,0.00038356,4]
[311415314,1705078291337,-524.69215964,0.00038356,4]
[311415315,1705078291347,-500.0,0.00038356,4]
[311415316,1705078291357,-617.18,0.00038356,4]
[311415317,1705078291368,-500.0,0.00038356,4]
[311415318,1705078291379,-500.0,0.00038356,4]
[311415319,1705078291391,-500.0,0.00038356,4]
[311415320,1705078291403,-666.0,0.00038356,2]
[311415321,1705078291413,-500.0,0.00038356,4]
[311415322,1705078291423,-500.0,0.00038356,4]
[311415323,1705078291433,-931.55,0.00038356,4]
[311415324,1705078291444,-500.0,0.00038356,4]
[311415325,1705078291455,-1378.86,0.00038356,4]
[311415326,1705078291465,-704.26,0.00038356,4]
[311415327,1705078291476,-500.0,0.00038356,4]
[311415328,1705078291487,-1855.35,0.00038356,4]
[311415329,1705078291497,-633.89,0.00038356,4]
[311415330,1705078291508,-500.0,0.00038356,4]
[311415331,1705078291518,-2000.0,0.00038356,7]
[311415332,1705078291529,-2000.0,0.00038356,7]
[311415333,1705078291539,-1929.3,0.00038356,7]
[311415334,1705078291550,-500.0,0.00038356,4]
[311415335,1705078291561,-164.7,0.00038356,4]
[311415336,1705078291571,-500.0,0.00038356,4]
[311415337,1705078291582,-500.0,0.00038356,4]
[311415338,1705078291593,-500.0,0.00038356,4]
[311415339,1705078291604,-549.38,0.00038356,4]
[311415340,1705078291615,-500.0,0.00038356,4]
[311415341,1705078291626,-500.0,0.00038356,4]
[311415342,1705078291639,-500.0,0.00038356,4]
[311415343,1705078291651,-650.36,0.00038356,4]
[311415344,1705078291662,-1004.26,0.00038356,4]
[311415345,1705078291673,-644.9,0.00038356,4]
[311415346,1705078291683,-197.89767636,0.00038356,4]
[311415347,1705078291694,-500.0,0.00038356,4]
[311415348,1705078291706,-500.0,0.00038356,4]
[311415349,1705078291716,-500.0,0.00038356,4]
[311415350,1705078291727,-500.0,0.00038356,4]
[311415351,1705078291737,-1035.58,0.00038356,4]
[311415352,1705078291748,-500.0,0.00038356,4]
[311415353,1705078291759,-226.55,0.00038356,4]
[311415354,1705078291769,-682.31,0.00038356,4]
[311415355,1705078291779,-500.0,0.00038356,4]
[311415356,1705078291790,-655.11,0.00038356,4]
[311415357,1705078291800,-613.18150849,0.00038356,4]
[311415358,1705078291811,-500.0,0.00038356,4]
[311415359,1705078291822,-500.0,0.00038356,4]
[311415360,1705078291832,-941.05,0.00038356,4]
[311415361,1705078291843,-327.65,0.00038356,4]
[311415362,1705078291852,-500.0,0.00038356,4]
[311415363,1705078291863,-532.17,0.00038356,4]
[311415364,1705078291874,-1133.84,0.00038356,4]
[311415365,1705078291886,-500.0,0.00038356,4]
[311415366,1705078291897,-500.0,0.00038356,4]
[311415367,1705078291907,-500.0,0.00038356,4]
[311415368,1705078291917,-500.0,0.00038356,4]
[311415369,1705078291928,-500.0,0.00038356,4]
[311415370,1705078291938,-500.0,0.00038356,4]
[311415371,1705078291948,-428.04,0.00038356,4]
[311415372,1705078291959,-2787.39,0.00038356,4]
[311415373,1705078291969,-665.67,0.00038356,4]
[311415374,1705078291980,-4677.32,0.00038356,4]
[311415375,1705078291990,-609.45961894,0.00038356,4]
[311415376,1705078292001,-500.0,0.00038356,4]
[311415377,1705078292012,-1033.68,0.00038356,4]
[311415378,1705078292022,-989.52,0.00038356,4]
[311415379,1705078292032,-554.11,0.00038356,4]
[311415380,1705078292043,-500.0,0.00038356,4]
[311415381,1705078292053,-1450.88,0.00038356,4]
[311415382,1705078292063,-520.97,0.00038356,4]
[311415383,1705078292073,-500.0,0.00038356,4]
[311415384,1705078292083,-390.44,0.00038356,4]
[311415385,1705078292094,-500.0,0.00038356,4]
[311415386,1705078292105,-986.25,0.00038356,4]
[311415387,1705078292115,-500.0,0.00038356,4]
[311415388,1705078292127,-500.0,0.00038356,4]
[311415389,1705078292140,-5168.02,0.00038356,4]
[311415390,1705078292149,-1229.05,0.00038356,4]
[311415391,1705078292160,-525.64,0.00038356,4]
[311415392,1705078292170,-719.31,0.00038356,4]
[311415393,1705078292179,-799.83,0.00038356,4]
[311415394,1705078292189,-691.11,0.00038356,4]
[311415395,1705078292199,-500.0,0.00038356,4]
[311415396,1705078292209,-609.83,0.00038356,4]
[311415397,1705078292220,-2978.71,0.00038356,4]
[311415398,1705078292231,-500.0,0.00038356,4]
[311415399,1705078292241,-500.0,0.00038356,4]
[311415400,1705078292251,-589.54,0.00038356,4]
[311415401,1705078292262,-510.43,0.00038356,4]
[311415402,1705078292272,-1048.49,0.00038356,4]
[311415403,1705078292282,-500.0,0.00038356,4]
[311415404,1705078292292,-989.98,0.00038356,4]
[311415405,1705078292303,-515.37,0.00038356,4]
[311415406,1705078292314,-778.99,0.00038356,4]
[311415407,1705078292324,-500.0,0.00038356,4]
[311415408,1705078292334,-500.0,0.00038356,4]
[311415409,1705078292344,-500.0,0.00038356,4]
[311415410,1705078292354,-584.22,0.00038356,4]
[311415411,1705078292364,-500.0,0.00038356,4]
[311415412,1705078292374,-400.36,0.00038356,4]
[311415413,1705078292388,-2071.89,0.00038356,4]
[311415414,1705078292398,-500.0,0.00038356,4]
[311415415,1705078292408,-1972.66,0.00038356,4]
[311415416,1705078292418,-1209.09,0.00038356,4]
[311415417,1705078292429,-3109.86,0.00038356,4]
[311415418,1705078292439,-500.0,0.00038356,4]
[311415419,1705078292450,-1521.97,0.00038356,4]
[311415420,1705078292461,-500.0,0.00038356,4]
[311415421,1705078292472,-693.43,0.00038356,4]
[311415422,1705078292481,-500.0,0.00038356,4]